[Event "German Rapid Championship 2022"]
[Site "Goettingen"]
[Date "2022.09.25"]
[Round "9.3"]
[White "Krastev, Alexander"]
[Black "Poetsch, Hagen"]
[Result "1-0"]
[ECO "B94"]
[WhiteElo "2431"]
[BlackElo "2491"]
[Annotator "TA"]
[PlyCount "57"]
[EventDate "2022.09.24"]
[EventType "swiss"]
[EventCountry "GER"]
[SourceTitle "playchess.com"]
[Source "ChessBase"]
[SourceQuality "1"]
[TimeControl "900+10"]

{[%evp 12,57,29,12,17,27,52,45,49,31,79,64,63,41,47,54,70,64,120,43,79,82,98,105,102,96,108,105,95,78,482,470,636,618,601,592,977,966,934,845,1792,1707,29988,1416,29995,29996,29998,29999]} 1. e4 {[%emt 0:00:02]} c5 {[%emt 0:00:01]} 2. Nc3 {[%emt 0:00:02]} d6 {[%emt 0:00:02]} 3. Nge2 {[%emt 0:00:17]} Nf6 {[%emt 0:00:03]} 4. d4 {[%emt 0:00:01]} cxd4 {[%emt 0:00:02]} 5. Nxd4 {[%emt 0:00:02]} a6 {[%emt 0:00:01]} 6. Bg5 {[%emt 0:00:02]} Nbd7 {[%emt 0:00:02]} 7. a4 {[%emt 0:00:02] 7.Qe2 is the modern continuation.} h6 {[%emt 0:00:11] B94: Sicilian Najdorf: 6 Bg5 Nbd7.} 8. Be3 {[%emt 0:00:06]} g6 {[%emt 0:00:35]} 9. f3 {[%emt 0:01:15]} Bg7 {[%emt 0:00:13] White is slightly better.} 10. Qd2 {[%emt 0:00:08] [#]} Qc7 $146 {[%emt 0:00:18]} (10... b6 $14) ({Predecessor:} 10... Ne5 11. Be2 Bd7 12. O-O Rc8 13. Nb3 Be6 14. Rfd1 Nc4 15. Bxc4 Bxc4 16. a5 h5 {1-0 (38) Klimkowski,J (2322)-Bartel,M (2626) Warsaw 2021}) 11. a5 $16 {[%emt 0:00:33]} b6 {[%emt 0:01:42]} 12. axb6 {[%emt 0:01:50]} Nxb6 {[%emt 0:00:02]} 13. Be2 {[%emt 0:00:02]} Bb7 {[%emt 0:01:28]} 14. O-O {[%emt 0:03:22]} O-O {[%emt 0:01:34]} (14... Nfd7 $14) 15. Nb3 {[%emt 0:02:13]} ({White should play} 15. Bxh6 $16 Bxh6 16. Qxh6) 15... Kh7 {[%emt 0:00:58]} 16. Na5 {[%emt 0:00:15]} Rfd8 {[%emt 0:00:50]} 17. Na4 {[%emt 0:01:00]} Nxa4 {[%emt 0:00:21]} 18. Rxa4 {[%emt 0:00:02]} d5 {[%emt 0:00:47][%cal Rd5e4] Against Rc4} 19. e5 {[%emt 0:01:12]} Nd7 {[%emt 0:00:49]} 20. Bxh6 {[%emt 0:01:14][%cal Oe5e6] [#] e6! is the strong threat.} Bxh6 $4 {[%emt 0:01:24][%mdl 8192] Black cannot hold the game after this.} (20... Nxe5 $16 21. Rh4 Rh8) 21. Rh4 $18 {[%emt 0:00:02] Active counter play!} Qb6+ {[%emt 0:02:27]} 22. Kh1 {[%emt 0:00:05]} g5 {[%emt 0:00:01]} 23. Qxg5 {[%emt 0:00:01] Bd3+ would kill now.} Nc5 {[%emt 0:00:23]} 24. Nxb7 {[%emt 0:00:33]} Rg8 {[%emt 0:00:15]} 25. Qf5+ {[%emt 0:01:40]} Kg7 {[%emt 0:00:21]} 26. Nxc5 {[%emt 0:00:41][%cal Oe5e6] [#] Threatening mate with e6!} Qxc5 {[%emt 0:00:03]} 27. Bd3 {[%emt 0:00:16]} (27. Rg4+ $142 Kf8 28. e6 Rg7 29. Rxg7 Kxg7 30. Qxf7+ Kh8 31. Bd3 Bg7 32. Qh5+ Kg8 33. Bh7+ Kh8 34. Bg6+ Kg8 35. Qh7+ Kf8 36. Bf7 Qg1+ 37. Rxg1 Bxb2 38. Qg8#) 27... Rh8 {[%emt 0:00:12]} 28. e6 {[%emt 0:00:20][%csl Ge6][%cal Rf5f7]} Raf8 {[%emt 0:00:28]} 29. Rg4+ {[%emt 0:00:06] Weighted Error Value: White=0.14 (very precise) /Black=1.13} 1-0

[Event "German Rapid Championship 2022"]
[Site "Goettingen"]
[Date "2022.09.25"]
[Round "9.4"]
[White "Woelk, Tom-Frederic"]
[Black "Lubbe, Nikolas"]
[Result "1/2-1/2"]
[ECO "B60"]
[WhiteElo "2289"]
[BlackElo "2479"]
[Annotator "TA"]
[PlyCount "113"]
[EventDate "2022.09.24"]
[EventType "swiss"]
[EventCountry "GER"]
[SourceTitle "playchess.com"]
[Source "ChessBase"]
[SourceQuality "1"]
[TimeControl "900+10"]

{[%evp 27,113,8,50,28,27,23,34,10,70,67,100,88,79,72,72,72,81,77,76,69,112,70,77,69,74,44,116,0,0,0,-6,-8,0,0,0,0,0,0,0,0,0,-24,-13,-91,-63,-57,-54,-168,-116,-155,-163,-194,-170,-230,-194,-356,-331,-568,-519,-1000,-992,-977,-604,-499,-460,-366,0,0,0,0,0,0,0,0,0,-29970,-29972,-29981,-29981,-29986,-29987,-29988,-29989,-29989,-29990,-29990,-29991,-29991]} 1. e4 {[%emt 0:00:03]} c5 {[%emt 0:00:04]} 2. Nf3 {[%emt 0:00:02]} Nc6 {[%emt 0:00:04]} 3. d4 {[%emt 0:00:06]} cxd4 {[%emt 0:00:03]} 4. Nxd4 {[%emt 0:00:02]} Nf6 {[%emt 0:00:02]} 5. Nc3 {[%emt 0:00:02]} d6 {[%emt 0:00:01]} 6. Bg5 {[%emt 0:00:13]} Qb6 {[%emt 0:00:22]} 7. Nb3 {[%emt 0:01:10]} e6 {[%emt 0:00:06]} 8. Qd2 {[%emt 0:00:34]} Be7 {[%emt 0:00:13]} 9. O-O-O {[%emt 0:00:07]} O-O {[%emt 0:00:35]} 10. f3 {[%emt 0:01:52]} Rd8 {[%emt 0:00:13]} 11. Be3 {[%emt 0:01:08]} Qc7 {[%emt 0:00:02]} 12. Qf2 {[%emt 0:00:02]} d5 {[%emt 0:01:28]} 13. exd5 {[%emt 0:00:07]} Nxd5 {[%emt 0:00:29]} 14. Nxd5 {[%emt 0:00:03]} exd5 {[%emt 0:00:15]} 15. Kb1 {[%emt 0:00:17] B63: Sicilian: Richter-Rauzer: 7...Be7 and unusual Black 7th moves.} Bf6 {[%emt 0:04:17][%cal Od5d4]} 16. Bb5 {[%emt 0:02:08] [#]} Be6 $146 {[%emt 0:03:58][%cal Od5d4]} ({Predecessor:} 16... Bf5 17. Bxc6 Qxc6 18. Nd4 Bxd4 19. Bxd4 h6 20. g4 Bh7 21. Rhe1 Rac8 22. Bc3 Qb6 23. Qxb6 axb6 {½-½ (42) Kollars,D (2470)-Hakobyan,A (2348) Kirishi 2016}) 17. Nd4 {[%emt 0:01:02] White is slightly better.} Ne5 {[%emt 0:01:14]} (17... Bd7 $11) 18. Rhe1 {[%emt 0:00:59]} Qa5 {[%emt 0:00:36]} 19. Nxe6 {[%emt 0:00:46]} fxe6 {[%emt 0:01:14]} 20. Bd4 {[%emt 0:00:03]} Qxb5 {[%emt 0:00:34]} 21. Bxe5 {[%emt 0:00:02]} Bxe5 {[%emt 0:00:05]} 22. Rxe5 {[%emt 0:00:02]} Rd6 {[%emt 0:00:03][%cal Bd8d6,Bd6b6,Bb6b4,Bb4g4][%mdl 32]} 23. Rde1 {[%emt 0:01:17]} Rb6 {[%emt 0:00:13][%csl Gb6][%cal Rb5b2]} 24. Qd4 {[%emt 0:00:01] Active counter play!} Rf8 {[%emt 0:00:17][%cal Of8f4]} 25. b3 {[%emt 0:02:37]} Rf6 {[%emt 0:00:11]} 26. f4 {[%emt 0:00:24]} Kf7 {[%emt 0:00:32]} (26... Qb4 $14 27. Qxb4 Rxb4) 27. g4 {[%emt 0:00:52]} (27. Qe3 $16) 27... Qb4 $1 $11 {[%emt 0:00:11]} 28. Qxb4 {[%emt 0:00:08]} Rxb4 {[%emt 0:00:00][%mdl 4096] Endgame KRR-KRR} 29. f5 $132 {[%emt 0:00:01][%cal Rf5e6][%mdl 2048] White puts up resistance} Rxg4 {[%emt 0:00:25]} 30. fxe6+ {[%emt 0:00:03]} Ke7 {[%emt 0:00:00]} 31. Rxd5 {[%emt 0:00:13] White threatens Rd7+ and mate.} Rxe6 {[%emt 0:00:01]} 32. Red1 {[%emt 0:00:29]} Kf6 {[%emt 0:00:44]} 33. Rd7 {[%emt 0:00:30]} Re7 $1 {[%emt 0:00:03]} 34. R7d2 {[%emt 0:01:16]} h5 {[%emt 0:00:18]} 35. Rf2+ {[%emt 0:00:10] [#]} (35. a4 $11) 35... Kg5 $1 $17 {[%emt 0:00:12]} 36. c4 {[%emt 0:01:17]} Kh4 {[%emt 0:00:10]} 37. Kb2 {[%emt 0:00:22]} ({Better is} 37. Rd3 $15) 37... g5 {[%emt 0:00:03]} ({Black should try} 37... Rge4 $19 38. Rdd2 g5) 38. c5 {[%emt 0:00:17]} Rge4 {[%emt 0:00:18]} 39. Rdd2 {[%emt 0:00:08]} g4 {[%emt 0:00:09]} 40. Rc2 {[%emt 0:00:14]} (40. Kc3 $142) 40... Kh3 $19 {[%emt 0:00:06]} 41. Rc3+ $2 {[%emt 0:00:36] [#]} (41. a4) 41... Re3 $1 {[%emt 0:00:38] White must now prevent ...Rxc3.} 42. b4 $2 {[%emt 0:00:05]} (42. Rcc2) 42... h4 {[%emt 0:00:09]} 43. Re2 {[%emt 0:00:08]} (43. Rcc2 $142 Rf3 44. Rfd2) 43... Rxc3 {[%emt 0:00:10]} 44. Rxe7 {[%emt 0:00:01] KR-KR} Rc4 {[%emt 0:00:05]} 45. Kb3 {[%emt 0:00:02]} Rc1 {[%emt 0:00:07]} 46. Rh7 {[%emt 0:00:17]} a5 $2 {[%emt 0:00:12]} ({Stronger than} 46... Kxh2 47. Rxh4+ Kg3 48. Rh7 $11) (46... b6 $19 47. a4 bxc5) 47. a3 $1 $11 {[%emt 0:00:04]} (47. Kb2 Rc4 48. a3 axb4 49. axb4 Rxb4+ 50. Kc3 Rb1 $19) 47... axb4 {[%emt 0:00:11]} 48. axb4 {[%emt 0:00:02]} Rb1+ {[%emt 0:00:08]} 49. Kc4 {[%emt 0:00:03]} Rb2 {[%emt 0:00:05]} (49... Kxh2 $2 50. Rxh4+ Kg3 51. Rh7 $18) 50. Rxb7 {[%emt 0:00:12] Hoping for Kc3.} Kxh2 {[%emt 0:00:03] ( -> ...g3)} 51. Rh7 $2 {[%emt 0:00:03][%mdl 8192]} (51. Kc3 $11 Rb1 52. Kc2) 51... h3 {[%emt 0:00:05] Black mates.} 52. c6 {[%emt 0:00:00]} Rc2+ {[%emt 0:00:01]} 53. Kd5 {[%emt 0:00:04]} g3 {[%emt 0:00:02]} 54. b5 {[%emt 0:00:08]} g2 {[%emt 0:00:02]} 55. Rg7 g1=Q {[%emt 0:00:13]} 56. Rxg1 {[%emt 0:00:03]} Kxg1 {[%emt 0:00:01]} 57. Kd4 {[%mdl 32768] Weighted Error Value: White=0.48/Black=0.28 (precise) . An unexpected result.} 1/2-1/2

[Event "German Rapid Championship 2022"]
[Site "Goettingen"]
[Date "2022.09.25"]
[Round "9.5"]
[White "Heider, Martin"]
[Black "Kopylov, Michael"]
[Result "0-1"]
[ECO "A06"]
[WhiteElo "2393"]
[BlackElo "2371"]
[Annotator "TA"]
[PlyCount "52"]
[EventDate "2022.09.24"]
[EventType "swiss"]
[EventCountry "GER"]
[SourceTitle "playchess.com"]
[Source "ChessBase"]
[SourceQuality "1"]
[TimeControl "900+10"]

{[%evp 9,52,27,28,20,15,0,7,0,0,0,0,0,0,0,0,4,9,-4,-3,-2,-2,-50,-48,-30,-34,-84,-88,-170,-51,-51,-51,-51,-51,-63,0,-189,0,0,0,-960,-947,-1315,-1280,-1190,-1014]} 1. Nf3 {[%emt 0:00:02]} d5 {[%emt 0:00:04]} 2. e3 {[%emt 0:00:02]} Nf6 {[%emt 0:00:14]} 3. c4 {[%emt 0:00:01]} g6 {[%emt 0:00:18]} 4. cxd5 {[%emt 0:00:11]} Nxd5 {[%emt 0:00:06]} 5. e4 {[%emt 0:00:03]} Nb6 {[%emt 0:00:09]} 6. a4 {[%emt 0:00:06] A06: Réti Opening: 1 Nf3 d5.} a5 {[%emt 0:00:33]} 7. d4 {[%emt 0:00:06]} Bg7 {[%emt 0:00:06]} 8. Nc3 {[%emt 0:00:24] The position is equal.} O-O {[%emt 0:01:17] [#]} 9. h3 $146 {[%emt 0:00:14]} ({Predecessor:} 9. Be3 Bg4 10. Be2 Nc6 11. Nb5 Bxf3 12. gxf3 e6 13. Rc1 Rc8 14. Rxc6 bxc6 15. Na7 {0-1 (24) Garnett,J (2059)-Anderson,J (2248) Torquay 2009}) 9... Nc6 {[%emt 0:00:10][%cal Rc6d4]} 10. Be3 {[%emt 0:00:56]} f5 {[%emt 0:00:51]} 11. exf5 {[%emt 0:00:28]} Bxf5 {[%emt 0:00:39]} 12. Be2 {[%emt 0:00:13]} e5 {[%emt 0:01:04]} 13. Qb3+ {[%emt 0:01:06]} Kh8 {[%emt 0:00:14][%cal Rc6d4]} 14. dxe5 {[%emt 0:00:52]} Nxe5 {[%emt 0:01:16]} 15. Rd1 {[%emt 0:01:21]} (15. Nxe5 $11 Bxe5 16. O-O) 15... Nxf3+ $15 {[%emt 0:01:41]} 16. Bxf3 {[%emt 0:00:08]} Qh4 {[%emt 0:00:03] ...Qb4 is the strong threat.} 17. Bxb6 {[%emt 0:05:09]} (17. Bxb7 $2 Rab8 18. Bd5 c6 19. Bxb6 (19. Bxc6 $2 Nc4 $19) 19... cxd5 $19) ({Better is} 17. O-O $15) 17... Rae8+ $17 {[%emt 0:01:15]} 18. Ne2 {[%emt 0:00:35]} (18. Be2 $17 {was necessary.} cxb6 19. O-O) 18... cxb6 {[%emt 0:00:25]} (18... Be6 $1 $19 {[%cal Re6b3]} 19. Qc2 Qb4+ 20. Qd2 Qxb6) 19. O-O $15 {[%emt 0:00:26]} Be6 {[%emt 0:02:10]} 20. Qxb6 {[%emt 0:01:18]} Bc4 {[%emt 0:00:08] And now ...Rxf3 would win. A strong pair of Bishops.} 21. Rfe1 $1 {[%emt 0:01:06] [#]} Re6 {[%emt 0:02:39] Black is more active.} (21... Rxf3 $1 $15 22. gxf3 Bxe2 23. Rxe2 Rxe2 24. Qd8+ (24. Rd8+ $2 Bf8 $19) 24... Qxd8 25. Rxd8+ {[#]} Bf8 $1 26. Rxf8+ Kg7) 22. Qa7 $2 {[%emt 0:02:23]} (22. Rd6 $1 $11 {and White stays safe.} Ree8 23. b3 Rxf3 24. gxf3 (24. bxc4 Rf7 $17) 24... Bxe2 25. Rxe2 Qg5+ 26. Kf1 Qc1+ 27. Kg2 Qg5+ 28. Kh1 Qc1+ 29. Kg2 Qg5+ 30. Kh1 Qc1+ 31. Kg2) 22... Rfe8 $2 {[%emt 0:01:48]} ({Black should play} 22... Qe7 $19 {[%cal Rc4e2]} 23. Rd2 Re8) 23. Qxa5 $11 {[%emt 0:00:12] Hoping for Ng3.} Qe7 $1 $36 {[%emt 0:01:05][%cal Rc4e2][%mdl 2048] Black is pushing.} ({Don't play} 23... Bxe2 24. Rxe2 Rxe2 25. Bxe2 $16) (23... Rxe2 $2 24. Bxe2 Bg8 25. Bg4 $18) (23... Bxb2 $2 24. Qb4 $18) 24. Rd2 {[%emt 0:00:50][%mdl 8192]} (24. Qd2 $11) 24... b6 $19 {[%emt 0:00:29] Black is clearly winning.} 25. Qa8 {[%emt 0:00:41]} Rxa8 26. Bxa8 {[%emt 0:00:01]} Bxe2 {[%emt 0:00:22] Weighted Error Value: White=0.65/Black=0.24 (precise)} 0-1

[Event "German Rapid Championship 2022"]
[Site "Goettingen"]
[Date "2022.09.25"]
[Round "9.6"]
[White "Arndt, Magnus"]
[Black "Karsay, Pascal"]
[Result "1-0"]
[ECO "E06"]
[WhiteElo "2384"]
[BlackElo "2269"]
[Annotator "TA"]
[PlyCount "81"]
[EventDate "2022.09.24"]
[EventType "swiss"]
[EventCountry "GER"]
[SourceTitle "playchess.com"]
[Source "ChessBase"]
[SourceQuality "1"]
[TimeControl "900+10"]

{[%evp 12,81,28,22,18,30,18,0,0,14,35,36,48,55,43,43,69,33,49,-7,0,-3,-17,-16,-16,-23,-24,-12,-12,-9,0,0,0,-46,0,0,0,-44,-39,-41,-39,-98,-8,-8,-8,-8,-8,-8,8,11,237,237,222,222,241,241,241,220,338,235,403,402,386,383,522,426,535,527,527,506,506,411]} 1. d4 {[%emt 0:00:02]} Nf6 {[%emt 0:00:01]} 2. c4 {[%emt 0:00:01]} e6 {[%emt 0:00:02]} 3. g3 {[%emt 0:00:04]} d5 {[%emt 0:00:01]} 4. Bg2 {[%emt 0:00:02]} Be7 {[%emt 0:00:02]} 5. Nf3 {[%emt 0:00:01][%cal Bg1f3,Bf3d2,Bd2b3,Bb3c5][%mdl 32]} O-O {[%emt 0:00:02]} 6. O-O {[%emt 0:00:03]} c6 {[%emt 0:00:02]} 7. Nc3 {[%emt 0:00:02]} a5 {[%emt 0:00:02] E06: Closed Catalan: Early deviations.} 8. Nd2 {[%emt 0:02:10]} b5 {[%emt 0:00:15]} 9. cxb5 {[%emt 0:01:28]} cxb5 {[%emt 0:00:01] The position is equal.} 10. Nxb5 {[%emt 0:02:28]} Ba6 {[%emt 0:00:01]} 11. Nc3 {[%emt 0:00:56] [#]} Nc6 $146 {[%emt 0:00:04][%cal Bb8c6,Bc6b4,Bb4c2][%mdl 32]} ({Predecessor:} 11... Qb6 12. Nf3 Nbd7 13. b3 Rfc8 14. Bb2 Rab8 15. Rc1 Bb4 16. Ne5 Nxe5 17. dxe5 Nd7 {1-0 (53) Vergara Anton,D (2245)-Garcia Sanz,D (1649) Oviedo 2022}) 12. Nb3 {[%emt 0:00:51]} Qb6 {[%emt 0:01:20]} 13. Re1 {[%emt 0:01:08]} Rfc8 {[%emt 0:04:58]} 14. e3 {[%emt 0:02:46][%cal Ob3c5]} Nb4 {[%emt 0:00:27]} 15. Na4 {[%emt 0:00:30]} (15. Nc5 $14) 15... Qc6 {[%emt 0:01:12]} 16. Nbc5 {[%emt 0:00:01]} Bb5 {[%emt 0:00:02]} 17. Bd2 {[%emt 0:02:25]} Bxa4 {[%emt 0:00:23]} 18. Nxa4 {[%emt 0:00:15]} Nc2 {[%emt 0:00:09]} 19. Rc1 $1 {[%emt 0:00:01]} Qxa4 {[%emt 0:00:04]} 20. Bc3 $1 {[%emt 0:00:01] [#]} Qxa2 $1 {[%emt 0:00:28]} 21. Qxc2 {[%emt 0:00:13]} a4 {[%emt 0:01:52]} 22. Qd2 {[%emt 0:01:38]} (22. Ra1 $11 Qc4 23. Bf1) 22... Ne4 {[%emt 0:00:25]} (22... Qb3 $15) 23. Bxe4 $11 {[%emt 0:00:19]} dxe4 {[%emt 0:00:01]} 24. d5 {[%emt 0:00:46]} Qxd5 {[%emt 0:00:13]} 25. Qxd5 {[%emt 0:00:02]} exd5 {[%emt 0:00:01]} 26. Bd4 {[%emt 0:00:29]} (26. Rcd1 $15) 26... Bb4 {[%emt 0:00:35]} (26... f6 $17 27. Ra1 Kf7) 27. Rxc8+ {[%emt 0:00:13]} Rxc8 {[%emt 0:00:01][%mdl 4096] Endgame KRB-KRB} 28. Ra1 {[%emt 0:00:01]} Ra8 {[%emt 0:00:06]} 29. Rc1 {[%emt 0:00:01]} a3 {[%emt 0:02:31]} 30. bxa3 {[%emt 0:00:04]} Bxa3 {[%emt 0:00:12] [#] Loses the game.} (30... Bf8 $11 {and Black is okay.}) 31. Ra1 $18 {[%emt 0:00:03] aiming for Bb2.} Ra5 {[%emt 0:00:36]} 32. Bc3 {[%emt 0:00:06] Prevents Bb4.} Ra7 {[%emt 0:00:13]} 33. Bb4 {[%emt 0:00:05] Inhibits Bc5.} Bxb4 {[%emt 0:00:03]} 34. Rxa7 {[%emt 0:00:01] And now Rd7 would win. KR-KB} g6 {[%emt 0:00:27]} (34... h5 $142 35. Rd7 g6 36. Rxd5 f5) 35. Rd7 {[%emt 0:00:04]} Kg7 $2 {[%emt 0:01:02]} (35... h5 {was worth a try.} 36. Rxd5 Ba3) 36. Rxd5 {[%emt 0:00:03]} Bc3 {[%emt 0:00:07]} 37. g4 {[%emt 0:00:10] Prevents h5.} h6 {[%emt 0:00:37]} 38. Kg2 {[%emt 0:00:05] White is clearly winning.} Kf8 {[%emt 0:00:39]} 39. Kg3 {[%emt 0:00:11]} Ke7 {[%emt 0:00:02]} 40. Rc5 {[%emt 0:00:30]} Bb4 {[%emt 0:00:04]} 41. Re5+ {[%emt 0:00:10] Weighted Error Value: White=0.12 (very precise) /Black=0.38} 1-0

[Event "German Rapid Championship 2022"]
[Site "Goettingen"]
[Date "2022.09.25"]
[Round "9.8"]
[White "Elier, Ali"]
[Black "Carlstedt, Jonathan"]
[Result "0-1"]
[ECO "B38"]
[WhiteElo "2164"]
[BlackElo "2433"]
[Annotator "TA"]
[PlyCount "84"]
[EventDate "2022.09.24"]
[EventType "swiss"]
[EventCountry "GER"]
[SourceTitle "playchess.com"]
[Source "ChessBase"]
[SourceQuality "1"]
[TimeControl "900+10"]

{[%evp 23,84,48,59,12,18,16,15,12,8,0,0,0,0,0,0,0,0,-27,-27,-27,-27,-27,0,-8,-7,-29,-39,-118,-113,-112,-54,-90,-94,-96,-95,-87,-80,-85,-85,-138,-25,-131,-142,-166,-161,-260,-257,-249,-187,-598,-567,-567,-567,-591,-562,-6127,-7488,-12820,-10714,-12843,-12843,-12844,-12844]} 1. e4 {[%emt 0:00:02]} c5 {[%emt 0:00:03]} 2. Nf3 {[%emt 0:00:29]} Nc6 {[%emt 0:00:03]} 3. d4 {[%emt 0:00:01]} cxd4 {[%emt 0:00:02]} 4. Nxd4 {[%emt 0:00:01]} g6 {[%emt 0:00:01]} 5. c4 {[%emt 0:00:09]} Bg7 {[%emt 0:00:02]} 6. Be3 {[%emt 0:00:03]} Nf6 {[%emt 0:00:01]} 7. f3 {[%emt 0:00:07]} O-O {[%emt 0:00:06]} 8. Be2 {[%emt 0:00:18]} d6 {[%emt 0:00:15]} 9. Nc3 {[%emt 0:00:05]} Bd7 {[%emt 0:00:02]} 10. O-O {[%emt 0:00:07]} Nxd4 {[%emt 0:00:19]} 11. Bxd4 {[%emt 0:00:01]} Bc6 {[%emt 0:00:01]} 12. Qd2 {[%emt 0:01:26]} Nd7 {[%emt 0:00:02]} 13. b4 {[%emt 0:00:39] B38: Sicilian: Maroczy Bind with 5...Bg7 and 7...0-0.} (13. Bf2 $14) 13... Bxd4+ $1 $11 {[%emt 0:00:38]} 14. Qxd4 {[%emt 0:00:02] aiming for b5.} Qb6 {[%emt 0:00:03]} 15. Qxb6 {[%emt 0:00:51] The position is equal.} Nxb6 {[%emt 0:00:02]} 16. Nd5 {[%emt 0:00:30]} Bxd5 {[%emt 0:00:14]} 17. cxd5 {[%emt 0:00:52]} Rfc8 {[%emt 0:00:12]} 18. Rfc1 {[%emt 0:00:06] Inhibits Rc2.} Kg7 {[%emt 0:00:02]} 19. Kf2 {[%emt 0:00:02]} f5 {[%emt 0:00:01] [#]} 20. a4 $146 {[%emt 0:00:37]} ({Predecessor:} 20. Ke3 Kf6 21. f4 fxe4 22. Kxe4 Rxc1 23. Rxc1 a5 24. b5 Rc8 25. Rxc8 Nxc8 26. g4 {½-½ (37) Koziak,V (2415)-Walach,M (2285) Krynica 1998}) 20... Rxc1 {[%emt 0:01:58]} 21. Rxc1 {[%emt 0:00:02] Strongly threatening Rc7.} fxe4 {[%emt 0:00:02]} 22. fxe4 {[%emt 0:00:07] Rc7 is the strong threat.} Nxa4 {[%emt 0:00:02][%mdl 4096] Endgame KRB-KRN} 23. Rc7 {[%emt 0:00:04]} Kf6 {[%emt 0:00:01]} 24. Rxb7 {[%emt 0:00:15]} a5 {[%emt 0:00:02]} 25. e5+ {[%emt 0:03:36]} (25. bxa5 $15 Rxa5 26. Bf3) 25... dxe5 $17 {[%emt 0:00:30]} 26. b5 {[%emt 0:00:02]} Nc5 {[%emt 0:01:26]} (26... Nc3 $17 27. Rb6+ Kf5) 27. Rc7 {[%emt 0:00:16]} Ne4+ {[%emt 0:00:16]} 28. Ke3 {[%emt 0:00:08]} Nd6 {[%emt 0:00:10]} 29. Rc6 {[%emt 0:01:25]} e4 {[%emt 0:00:53]} 30. Ra6 {[%emt 0:00:29]} Rc8 {[%emt 0:00:03]} 31. Rxa5 {[%emt 0:00:22] [#]} (31. Kd2 $142) 31... Ke5 {[%emt 0:00:03]} (31... Rc2 $1 $17 {And now ...Nf5+ would win.} 32. Kf2 h5) 32. b6 {[%emt 0:00:54] [#]} (32. Ra2 $11 {keeps the balance.}) 32... Rc3+ $1 {[%emt 0:00:08]} 33. Kd2 {[%emt 0:01:51]} Rb3 {[%emt 0:00:02]} 34. Ra6 {[%emt 0:00:30]} (34. Ra7 {is a better defense.}) 34... Rb2+ $19 {[%emt 0:00:56]} ({Inferior is} 34... Kxd5 35. Kc2 Rb4 36. Kc3 $17) 35. Ke1 {[%emt 0:01:36]} Nf5 {[%emt 0:00:37]} ({Not} 35... Kxd5 36. Ra5+ Ke6 37. g4) 36. g4 $2 {[%emt 0:00:15]} (36. d6 {is a better chance.} Nxd6 37. Kf2) 36... Nd4 {[%emt 0:00:11] Black is clearly winning.} 37. Bd1 {[%emt 0:00:24]} e3 {[%emt 0:06:02]} 38. Ra7 {[%emt 0:00:14]} Kd6 {[%emt 0:00:06]} 39. Ra4 {[%emt 0:00:52]} Kxd5 {[%emt 0:00:27]} 40. Ra7 {[%emt 0:00:02]} e5 {[%emt 0:01:03]} 41. Rxh7 {[%emt 0:00:09]} Rxb6 {[%emt 0:00:13]} 42. Ra7 {[%emt 0:01:02]} Rb1 {[%emt 0:00:08] Weighted Error Value: White=0.92/Black=0.09 (flawless)} 0-1